[Event "25th Bosnjaci Open 2020"]
[Site "Bosnjaci"]
[Date "2020.01.04"]
[Round "3.7"]
[White "Rosic, Slavko S"]
[Black "Blagojevic, Marijan"]
[Result "1-0"]
[ECO "B44"]
[WhiteElo "2295"]
[BlackElo "2164"]
[Annotator "ChessBase"]
[PlyCount "83"]
[EventDate "2020.01.03"]
[EventType "swiss"]
[EventCountry "CRO"]
[SourceTitle "playchess.com"]
[Source "ChessBase"]
[SourceQuality "1"]
[TimeControl "5400+30"]

1. e4 {[%emt 0:00:30]} c5 {[%emt 0:05:30]} 2. Nf3 {[%emt 0:00:30]} e6 {[%emt 0:00:30]} 3. d4 {[%emt 0:01:30]} cxd4 {[%emt 0:00:30]} 4. Nxd4 {[%emt 0:00:00]} Nc6 {[%emt 0:00:30]} 5. Be3 {[%emt 0:04:00]} Qc7 {[%emt 0:01:30]} 6. g3 {[%emt 0:03:30]} a6 {[%emt 0:00:30]} 7. Bg2 {[%emt 0:00:30]} Nf6 {[%emt 0:01:30]} 8. O-O {[%emt 0:00:30]} d6 {[%emt 0:03:30]} 9. Nxc6 {[%emt 0:06:30]} bxc6 {[%emt 0:00:30]} 10. c4 {[%emt 0:00:30]} Be7 {[%emt 0:03:30]} 11. Nc3 {[%emt 0:00:30]} Rb8 {[%emt 0:01:30]} 12. b3 {[%emt 0:02:30]} O-O {[%emt 0:00:30]} 13. h3 {[%emt 0:00:00]} c5 {[%emt 0:01:30]} 14. Qd2 {[%emt 0:06:00]} Bb7 {[%emt 0:00:30]} 15. Rad1 {[%emt 0:00:00]} Bc6 {[%emt 0:01:30]} 16. f4 {[%emt 0:08:00]} Rbd8 {[%emt 0:02:30]} 17. Rfe1 {[%emt 0:11:30]} Qb7 {[%emt 0:02:30]} 18. Bf2 {[%emt 0:02:30]} Rfe8 {[%emt 0:02:30]} 19. Kh2 {[%emt 0:01:30]} Rd7 {[%emt 0:05:30]} 20. g4 {[%emt 0:03:30]} g6 {[%emt 0:11:30]} 21. Bf3 {[%emt 0:03:30]} Rdd8 {[%emt 0:10:30]} 22. g5 {[%emt 0:07:30]} Nd7 {[%emt 0:00:30]} 23. h4 {[%emt 0:02:30]} Nb6 {[%emt 0:15:30]} 24. h5 {[%emt 0:00:30]} a5 {[%emt 0:01:30]} 25. Kg3 {[%emt 0:02:30]} a4 {[%emt 0:03:30]} 26. Rh1 {[%emt 0:00:30]} axb3 {[%emt 0:00:30]} 27. axb3 {[%emt 0:00:00]} f5 {[%emt 0:07:03]} 28. hxg6 {[%emt 0:04:00]} hxg6 {[%emt 0:01:19]} 29. Rh6 {[%emt 0:03:30]} Kg7 {[%emt 0:02:08]} 30. Qe2 {[%emt 0:02:30]} fxe4 {[%emt 0:02:48]} 31. Nxe4 {[%emt 0:01:30]} Rh8 {[%emt 0:01:04]} 32. Rdh1 {[%emt 0:03:58]} Nd7 {[%emt 0:01:41]} 33. Bd4+ {[%emt 0:11:38]} cxd4 {[%emt 0:01:52]} 34. Qh2 {[%emt 0:00:01]} Kf7 {[%emt 0:04:54]} 35. Rh7+ {[%emt 0:00:55]} Ke8 {[%emt 0:00:43]} 36. Rxh8+ {[%emt 0:00:16]} Nf8 {[%emt 0:00:08]} 37. Rxf8+ {[%emt 0:05:40]} Bxf8 {[%emt 0:00:26]} 38. Nf6+ {[%emt 0:01:27]} Kf7 {[%emt 0:00:01]} 39. Bxc6 {[%emt 0:01:28]} Qxc6 {[%emt 0:00:01]} 40. Qh7+ {[%emt 0:00:19]} Bg7 {[%emt 0:00:01]} 41. Rh6 {[%emt 0:00:13]} Rh8 {[%emt 0:01:08]} 42. Qxg6+ {[%emt 0:00:05]} 1-0

[Event "25th Bosnjaci Open 2020"]
[Site "Bosnjaci"]
[Date "2020.01.04"]
[Round "3.8"]
[White "Matanovic, Luka"]
[Black "Tomas, Ante"]
[Result "1-0"]
[ECO "C72"]
[WhiteElo "2256"]
[BlackElo "2157"]
[Annotator "NA"]
[PlyCount "51"]
[EventDate "2020.01.03"]
[EventType "swiss"]
[EventCountry "CRO"]
[SourceTitle "playchess.com"]
[Source "ChessBase"]
[SourceQuality "1"]
[TimeControl "5400+30"]

1. e4 {[%emt 0:00:30]} e5 {[%emt 0:00:30]} 2. Nf3 {[%emt 0:00:00]} Nc6 {[%emt 0:00:00]} 3. Bb5 {[%emt 0:00:00]} a6 {[%emt 0:00:00]} 4. Ba4 {[%emt 0:00:30]} d6 {[%emt 0:00:30]} 5. O-O {[%emt 0:00:30]} Bg4 {[%emt 0:00:00]} 6. c3 {[%emt 0:02:30]} Qf6 {[%emt 0:00:00]} 7. d3 {[%emt 0:07:30]} Bxf3 {[%emt 0:00:30]} 8. Qxf3 {[%emt 0:00:30]} Qxf3 {[%emt 0:00:30]} 9. gxf3 {[%emt 0:00:30]} g6 {[%emt 0:09:30]} 10. Be3 {[%emt 0:02:30]} Bg7 {[%emt 0:04:30]} 11. b4 {[%emt 0:07:30]} Nge7 {[%emt 0:02:30]} 12. Bb3 {[%emt 0:02:30]} O-O {[%emt 0:06:30]} 13. a4 {[%emt 0:07:30]} Rfd8 {[%emt 0:14:30]} 14. Na3 {[%emt 0:10:30]} d5 {[%emt 0:04:30]} 15. b5 {[%emt 0:03:30]} Na5 {[%emt 0:19:30]} 16. Ba2 {[%emt 0:06:30]} dxe4 {[%emt 0:03:30]} 17. dxe4 {[%emt 0:00:30]} Nc8 {[%emt 0:02:30]} 18. Rfd1 {[%emt 0:04:30]} Rxd1+ {[%emt 0:07:30]} 19. Rxd1 {[%emt 0:00:30]} Nd6 {[%emt 0:06:44]} 20. b6 {[%emt 0:03:30]} Nc6 {[%emt 0:03:54]} 21. bxc7 {[%emt 0:00:30]} Bf8 {[%emt 0:02:24]} 22. Nc4 {[%emt 0:07:30]} Nxc4 {[%emt 0:00:56]} 23. Bxc4 {[%emt 0:00:30]} Be7 {[%emt 0:00:08]} 24. Bf1 {[%emt 0:01:30]} Rc8 {[%emt 0:02:05]} 25. Bb6 {[%emt 0:00:30]} f5 {[%emt 0:01:31]} 26. Bc4+ {[%emt 0:00:00]} 1-0

[Event "25th Bosnjaci Open 2020"]
[Site "Bosnjaci"]
[Date "2020.01.04"]
[Round "3.9"]
[White "Bobanac, Miro"]
[Black "Draganic, Stjepan"]
[Result "1/2-1/2"]
[ECO "E07"]
[WhiteElo "2218"]
[BlackElo "2112"]
[Annotator "NA"]
[PlyCount "43"]
[EventDate "2020.01.03"]
[EventType "swiss"]
[EventCountry "CRO"]
[SourceTitle "playchess.com"]
[Source "ChessBase"]
[SourceQuality "1"]
[TimeControl "5400+30"]

1. Nf3 {[%emt 0:00:30]} d5 {[%emt 0:00:30]} 2. b3 {[%emt 0:00:30]} Nf6 {[%emt 0:00:30]} 3. Bb2 {[%emt 0:01:30]} c6 {[%emt 0:01:30]} 4. c4 {[%emt 0:00:30]} e6 {[%emt 0:02:30]} 5. g3 {[%emt 0:01:30]} Be7 {[%emt 0:00:30]} 6. Bg2 {[%emt 0:00:30]} O-O {[%emt 0:00:30]} 7. O-O {[%emt 0:00:30]} Ne4 {[%emt 0:02:30]} 8. d4 {[%emt 0:09:30]} Nd7 {[%emt 0:01:30]} 9. Ne5 {[%emt 0:08:30]} f5 {[%emt 0:09:30]} 10. Nxd7 {[%emt 0:05:30]} Bxd7 {[%emt 0:00:30]} 11. f3 {[%emt 0:00:30]} Nd6 {[%emt 0:06:30]} 12. Nd2 {[%emt 0:01:30]} f4 {[%emt 0:08:30]} 13. gxf4 {[%emt 0:02:30]} Nf5 {[%emt 0:02:30]} 14. Qb1 {[%emt 0:02:30]} Ne3 {[%emt 0:00:30]} 15. Rc1 {[%emt 0:00:30]} Bd6 {[%emt 0:01:30]} 16. Nf1 {[%emt 0:01:30]} Bxf4 {[%emt 0:01:30]} 17. Rc3 {[%emt 0:01:30]} Qg5 {[%emt 0:02:30]} 18. Nxe3 {[%emt 0:11:30]} Bxe3+ {[%emt 0:01:30]} 19. Rxe3 {[%emt 0:00:30]} Qxe3+ {[%emt 0:00:30]} 20. Kf1 {[%emt 0:00:30]} Qf4 {[%emt 0:05:30]} 21. Kg1 {[%emt 0:03:30]} Qe3+ {[%emt 0:00:30]} 22. Kf1 {[%emt 0:00:30]} 1/2-1/2

[Event "25th Bosnjaci Open 2020"]
[Site "Bosnjaci"]
[Date "2020.01.04"]
[Round "3.11"]
[White "Matanovic, Nikola"]
[Black "Kovacevic, Blazimir"]
[Result "1/2-1/2"]
[ECO "A80"]
[WhiteElo "1933"]
[BlackElo "2451"]
[Annotator "RC"]
[PlyCount "85"]
[EventDate "2020.01.03"]
[EventType "swiss"]
[EventCountry "CRO"]
[SourceTitle "playchess.com"]
[Source "ChessBase"]
[SourceQuality "1"]
[TimeControl "5400+30"]

1. d4 {[%emt 0:00:30]} f5 {[%emt 0:00:30]} 2. e3 {[%emt 0:00:00]} Nf6 {[%emt 0:00:00]} 3. Be2 {[%emt 0:00:00]} d6 {[%emt 0:01:00]} 4. Bh5+ {[%emt 0:00:30]} Nxh5 {[%emt 0:01:30]} 5. Qxh5+ {[%emt 0:00:30]} g6 {[%emt 0:00:30]} 6. Qe2 {[%emt 0:00:30]} Bg7 {[%emt 0:00:30]} 7. b3 {[%emt 0:00:30]} e5 {[%emt 0:03:30]} 8. c3 {[%emt 0:00:30]} O-O {[%emt 0:00:30]} 9. Bb2 {[%emt 0:00:30]} Nd7 {[%emt 0:11:30]} 10. Nd2 {[%emt 0:00:30]} d5 {[%emt 0:02:30]} 11. h4 {[%emt 0:01:30]} f4 {[%emt 0:05:30]} 12. O-O-O {[%emt 0:01:30]} fxe3 {[%emt 0:02:30]} 13. fxe3 {[%emt 0:05:30]} exd4 {[%emt 0:01:30]} 14. exd4 {[%emt 0:01:30]} Nf6 {[%emt 0:00:00]} 15. Ngf3 {[%emt 0:02:30]} Nh5 {[%emt 0:06:00]} 16. Rhe1 {[%emt 0:03:30]} Nf4 {[%emt 0:01:30]} 17. Qf1 {[%emt 0:00:30]} Bf5 {[%emt 0:01:30]} 18. Re3 {[%emt 0:00:30]} Bh6 {[%emt 0:06:30]} 19. Rde1 {[%emt 0:01:30]} Qd6 {[%emt 0:05:30]} 20. Ne5 {[%emt 0:01:30]} Nh5 {[%emt 0:06:30]} 21. Rf3 {[%emt 0:02:30]} Be4 {[%emt 0:02:30]} 22. Nf7 {[%emt 0:00:30]} Rxf7 {[%emt 0:23:40]} 23. Rxf7 {[%emt 0:00:30]} Nf4 {[%emt 0:00:06]} 24. Nxe4 {[%emt 0:02:30]} dxe4 {[%emt 0:00:12]} 25. Rxf4 {[%emt 0:00:30]} Qxf4+ {[%emt 0:00:44]} 26. Qxf4 {[%emt 0:00:30]} Bxf4+ {[%emt 0:00:05]} 27. Kd1 {[%emt 0:00:30]} Re8 {[%emt 0:00:05]} 28. Ba3 {[%emt 0:02:30]} Bg3 {[%emt 0:10:27]} 29. Rh1 {[%emt 0:00:30]} Kg7 {[%emt 0:02:01]} 30. Rh3 {[%emt 0:00:30]} Bf4 {[%emt 0:00:17]} 31. Ke2 {[%emt 0:00:30]} h5 {[%emt 0:03:17]} 32. g3 {[%emt 0:00:30]} Bh6 {[%emt 0:01:31]} 33. g4 {[%emt 0:00:30]} hxg4 {[%emt 0:00:09]} 34. Rg3 {[%emt 0:00:30]} Kf6 {[%emt 0:00:46]} 35. Rxg4 {[%emt 0:00:30]} Kf5 {[%emt 0:00:03]} 36. Rg2 {[%emt 0:00:30]} Bf4 {[%emt 0:00:34]} 37. c4 {[%emt 0:00:30]} Rh8 {[%emt 0:00:14]} 38. Be7 {[%emt 0:00:30]} Rh7 {[%emt 0:02:03]} 39. Bg5 {[%emt 0:01:30]} Bxg5 {[%emt 0:00:43]} 40. Rxg5+ {[%emt 0:00:30]} Kf6 {[%emt 0:00:08]} 41. Rg4 {[%emt 0:02:30]} Kf5 {[%emt 0:00:09]} 42. Rg5+ {[%emt 0:00:30]} Kf6 {[%emt 0:00:04]} 43. Rg4 {[%emt 0:00:30]} 1/2-1/2

[Event "25th Bosnjaci Open 2020"]
[Site "Bosnjaci"]
[Date "2020.01.04"]
[Round "3.12"]
[White "Nikic, Patrick"]
[Black "Muratovic, Efim"]
[Result "0-1"]
[ECO "B90"]
[WhiteElo "2076"]
[BlackElo "2394"]
[Annotator "ChessBase"]
[PlyCount "74"]
[EventDate "2020.01.03"]
[EventType "swiss"]
[EventCountry "CRO"]
[SourceTitle "playchess.com"]
[Source "ChessBase"]
[SourceQuality "1"]
[TimeControl "5400+30"]

1. e4 {[%emt 0:00:30]} c5 {[%emt 0:00:30]} 2. Nf3 {[%emt 0:00:30]} d6 {[%emt 0:01:30]} 3. d4 {[%emt 0:00:00]} cxd4 {[%emt 0:00:30]} 4. Nxd4 {[%emt 0:00:00]} Nf6 {[%emt 0:00:00]} 5. Nc3 {[%emt 0:00:30]} a6 {[%emt 0:00:00]} 6. Be3 {[%emt 0:00:30]} e5 {[%emt 0:04:30]} 7. Nb3 {[%emt 0:00:00]} Be6 {[%emt 0:00:30]} 8. f3 {[%emt 0:00:00]} Nbd7 {[%emt 0:02:30]} 9. Qd2 {[%emt 0:03:30]} h5 {[%emt 0:05:30]} 10. O-O-O {[%emt 0:00:30]} Be7 {[%emt 0:00:30]} 11. Kb1 {[%emt 0:01:30]} Qc7 {[%emt 0:05:30]} 12. Nd5 {[%emt 0:14:30]} Bxd5 {[%emt 0:06:30]} 13. exd5 {[%emt 0:00:30]} Nb6 {[%emt 0:07:30]} 14. Qa5 {[%emt 0:11:30]} Rc8 {[%emt 0:03:30]} 15. Bb5+ {[%emt 0:08:30]} axb5 {[%emt 0:08:30]} 16. Qxb6 {[%emt 0:04:30]} Qxc2+ {[%emt 0:00:30]} 17. Ka1 {[%emt 0:00:30]} O-O {[%emt 0:00:30]} 18. Rd2 {[%emt 0:13:30]} Qc4 {[%emt 0:00:30]} 19. Qxb7 {[%emt 0:01:30]} Ra8 {[%emt 0:07:30]} 20. Kb1 {[%emt 0:03:30]} Qa4 {[%emt 0:00:30]} 21. Nc1 {[%emt 0:06:30]} Rfe8 {[%emt 0:07:30]} 22. b3 {[%emt 0:03:30]} Qb4 {[%emt 0:04:30]} 23. Rhd1 {[%emt 0:05:53]} Rab8 {[%emt 0:04:30]} 24. Qa7 {[%emt 0:01:12]} Qh4 {[%emt 0:02:30]} 25. g3 {[%emt 0:01:02]} Qh3 {[%emt 0:00:30]} 26. Kb2 {[%emt 0:04:06]} Qf5 {[%emt 0:01:30]} 27. Rf2 {[%emt 0:03:53]} Nd7 {[%emt 0:13:39]} 28. Qa5 {[%emt 0:05:35]} Bf6 {[%emt 0:00:53]} 29. Qd2 {[%emt 0:00:31]} e4+ {[%emt 0:01:25]} 30. Kb1 {[%emt 0:00:21]} exf3+ {[%emt 0:00:26]} 31. Nd3 {[%emt 0:01:51]} Ne5 {[%emt 0:01:34]} 32. Bf4 {[%emt 0:00:44]} Nc4 {[%emt 0:02:31]} 33. Qb4 {[%emt 0:00:52]} Qxd5 {[%emt 0:03:01]} 34. Kc1 {[%emt 0:02:25]} Rbc8 {[%emt 0:01:57]} 35. Rc2 {[%emt 0:00:01]} Re2 {[%emt 0:01:55]} 36. Nf2 {[%emt 0:02:30]} Rxc2+ {[%emt 0:00:08]} 37. Kxc2 {[%emt 0:00:13]} Na3# {[%emt 0:00:09]} 0-1

[Event "25th Bosnjaci Open 2020"]
[Site "Bosnjaci"]
[Date "2020.01.04"]
[Round "3.13"]
[White "Zufic, Miroslav"]
[Black "Birkic, Josip"]
[Result "1-0"]
[ECO "B19"]
[WhiteElo "2375"]
[BlackElo "1996"]
[Annotator "NA"]
[PlyCount "81"]
[EventDate "2020.01.03"]
[EventType "swiss"]
[EventCountry "CRO"]
[SourceTitle "playchess.com"]
[Source "ChessBase"]
[SourceQuality "1"]
[TimeControl "5400+30"]

1. e4 {[%emt 0:00:30]} c6 {[%emt 0:02:30]} 2. d4 {[%emt 0:00:00]} d5 {[%emt 0:00:30]} 3. Nc3 {[%emt 0:00:00]} dxe4 {[%emt 0:00:00]} 4. Nxe4 {[%emt 0:00:00]} Bf5 {[%emt 0:00:00]} 5. Ng3 {[%emt 0:00:00]} Bg6 {[%emt 0:00:00]} 6. h4 {[%emt 0:00:30]} h6 {[%emt 0:00:00]} 7. Nf3 {[%emt 0:00:00]} Nd7 {[%emt 0:00:30]} 8. h5 {[%emt 0:00:00]} Bh7 {[%emt 0:00:00]} 9. Bd3 {[%emt 0:00:30]} Bxd3 {[%emt 0:00:00]} 10. Qxd3 {[%emt 0:00:00]} Qc7 {[%emt 0:00:30]} 11. Bd2 {[%emt 0:00:00]} e6 {[%emt 0:00:30]} 12. O-O-O {[%emt 0:00:30]} Ngf6 {[%emt 0:00:30]} 13. Qe2 {[%emt 0:01:30]} O-O-O {[%emt 0:12:30]} 14. Ne5 {[%emt 0:00:30]} Nxe5 {[%emt 0:00:30]} 15. dxe5 {[%emt 0:00:30]} Nd7 {[%emt 0:05:30]} 16. f4 {[%emt 0:00:00]} Be7 {[%emt 0:02:30]} 17. Ne4 {[%emt 0:04:00]} Nc5 {[%emt 0:01:30]} 18. Kb1 {[%emt 0:08:30]} Nxe4 {[%emt 0:01:30]} 19. Qxe4 {[%emt 0:00:30]} c5 {[%emt 0:01:30]} 20. Be3 {[%emt 0:00:30]} Rxd1+ {[%emt 0:02:30]} 21. Rxd1 {[%emt 0:07:30]} Rd8 {[%emt 0:02:30]} 22. Re1 {[%emt 0:04:30]} Qd7 {[%emt 0:07:30]} 23. c4 {[%emt 0:02:30]} Qa4 {[%emt 0:17:30]} 24. b3 {[%emt 0:02:30]} Qa5 {[%emt 0:01:30]} 25. Bc1 {[%emt 0:01:30]} Bh4 {[%emt 0:02:30]} 26. Rh1 {[%emt 0:02:30]} Bf2 {[%emt 0:00:30]} 27. f5 {[%emt 0:05:30]} Bd4 {[%emt 0:02:30]} 28. Rh3 {[%emt 0:01:30]} Qc7 {[%emt 0:03:30]} 29. Bf4 {[%emt 0:10:30]} Qd7 {[%emt 0:04:30]} 30. g4 {[%emt 0:00:30]} Bf2 {[%emt 0:04:30]} 31. Rh1 {[%emt 0:05:30]} Qd4 {[%emt 0:04:30]} 32. Qf3 {[%emt 0:10:30]} exf5 {[%emt 0:05:13]} 33. gxf5 {[%emt 0:00:30]} Bg1 {[%emt 0:00:39]} 34. f6 {[%emt 0:03:30]} Qd1+ {[%emt 0:04:47]} 35. Qxd1 {[%emt 0:07:30]} Rxd1+ {[%emt 0:00:05]} 36. Kc2 {[%emt 0:00:30]} Ra1 {[%emt 0:01:16]} 37. fxg7 {[%emt 0:00:30]} Rxa2+ {[%emt 0:00:16]} 38. Kd3 {[%emt 0:00:30]} Rg2 {[%emt 0:00:05]} 39. Bxh6 {[%emt 0:00:00]} Bd4 {[%emt 0:04:05]} 40. Ke4 {[%emt 0:02:00]} Kd7 {[%emt 0:01:42]} 41. Kf3 {[%emt 0:00:30]} 1-0

[Event "25th Bosnjaci Open 2020"]
[Site "Bosnjaci"]
[Date "2020.01.05"]
[Round "4.1"]
[White "Zovko, Mario"]
[Black "Zaja, Ivan"]
[Result "0-1"]
[ECO "B00"]
[WhiteElo "2330"]
[BlackElo "2447"]
[Annotator "RC"]
[PlyCount "82"]
[EventDate "2020.01.03"]
[EventType "swiss"]
[EventCountry "CRO"]
[SourceTitle "playchess.com"]
[Source "ChessBase"]
[SourceQuality "1"]
[TimeControl "5400+30"]

1. e4 {[%emt 0:00:30]} b6 {[%emt 0:00:30]} 2. d4 {[%emt 0:00:00]} Bb7 {[%emt 0:00:00]} 3. Bd3 {[%emt 0:00:00]} e6 {[%emt 0:00:00]} 4. Qe2 {[%emt 0:00:00]} Nf6 {[%emt 0:00:30]} 5. Nf3 {[%emt 0:00:00]} d5 {[%emt 0:00:00]} 6. Bg5 {[%emt 0:10:30]} dxe4 {[%emt 0:06:00]} 7. Bxe4 {[%emt 0:00:30]} Bxe4 {[%emt 0:00:00]} 8. Bxf6 {[%emt 0:00:30]} Qd5 {[%emt 0:01:00]} 9. Be5 {[%emt 0:03:30]} Bxf3 {[%emt 0:05:30]} 10. gxf3 {[%emt 0:01:30]} Nc6 {[%emt 0:00:30]} 11. c3 {[%emt 0:02:30]} Nxe5 {[%emt 0:05:30]} 12. dxe5 {[%emt 0:01:30]} O-O-O {[%emt 0:03:30]} 13. a4 {[%emt 0:07:30]} g5 {[%emt 0:11:30]} 14. Rg1 {[%emt 0:05:30]} Bg7 {[%emt 0:13:30]} 15. a5 {[%emt 0:14:30]} Qxe5 {[%emt 0:05:30]} 16. axb6 {[%emt 0:00:30]} axb6 {[%emt 0:00:30]} 17. Qxe5 {[%emt 0:00:30]} Bxe5 {[%emt 0:00:30]} 18. Rxg5 {[%emt 0:01:30]} Bxh2 {[%emt 0:01:30]} 19. Rg7 {[%emt 0:03:30]} Kb7 {[%emt 0:10:30]} 20. Ra4 {[%emt 0:01:30]} Rdg8 {[%emt 0:08:30]} 21. Rag4 {[%emt 0:01:30]} Rxg7 {[%emt 0:00:30]} 22. Rxg7 {[%emt 0:00:30]} h5 {[%emt 0:01:30]} 23. Kf1 {[%emt 0:01:30]} h4 {[%emt 0:00:30]} 24. Kg2 {[%emt 0:00:30]} Be5 {[%emt 0:04:41]} 25. Rxf7 {[%emt 0:00:30]} h3+ {[%emt 0:01:06]} 26. Kh1 {[%emt 0:00:00]} Rd8 {[%emt 0:00:42]} 27. f4 {[%emt 0:00:00]} Rd1+ {[%emt 0:00:25]} 28. Kh2 {[%emt 0:00:30]} Bd6 {[%emt 0:00:54]} 29. Na3 {[%emt 0:00:30]} Bxa3 {[%emt 0:04:18]} 30. bxa3 {[%emt 0:00:30]} Rd3 {[%emt 0:00:03]} 31. c4 {[%emt 0:01:30]} Rxa3 {[%emt 0:01:10]} 32. f5 {[%emt 0:00:30]} exf5 {[%emt 0:06:04]} 33. Rxf5 {[%emt 0:00:30]} Rc3 {[%emt 0:00:14]} 34. Rf4 {[%emt 0:01:30]} Kc6 {[%emt 0:00:12]} 35. f3 {[%emt 0:00:30]} Kc5 {[%emt 0:00:17]} 36. Kxh3 {[%emt 0:00:30]} Rxc4 {[%emt 0:00:49]} 37. Rxc4+ {[%emt 0:00:30]} Kxc4 {[%emt 0:00:07]} 38. Kg4 {[%emt 0:00:30]} b5 {[%emt 0:01:38]} 39. f4 {[%emt 0:00:30]} b4 {[%emt 0:00:08]} 40. f5 {[%emt 0:00:00]} Kd5 {[%emt 0:00:15]} 41. Kg5 {[%emt 0:00:00]} b3 {[%emt 0:00:13]} 0-1

[Event "25th Bosnjaci Open 2020"]
[Site "Bosnjaci"]
[Date "2020.01.05"]
[Round "4.8"]
[White "Petricevic, Ivan"]
[Black "Bobanac, Miro"]
[Result "0-1"]
[ECO "D00"]
[WhiteElo "1942"]
[BlackElo "2218"]
[Annotator "NA"]
[PlyCount "70"]
[EventDate "2020.01.03"]
[EventType "swiss"]
[EventCountry "CRO"]
[SourceTitle "playchess.com"]
[Source "ChessBase"]
[SourceQuality "1"]
[TimeControl "5400+30"]

1. d4 {[%emt 0:00:30]} Nf6 {[%emt 0:00:30]} 2. Nc3 {[%emt 0:00:30]} d5 {[%emt 0:01:30]} 3. Nf3 {[%emt 0:01:30]} Bf5 {[%emt 0:01:30]} 4. Bf4 {[%emt 0:03:30]} e6 {[%emt 0:01:30]} 5. Nh4 {[%emt 0:02:30]} Bg6 {[%emt 0:02:30]} 6. Nxg6 {[%emt 0:13:30]} hxg6 {[%emt 0:00:30]} 7. Qd3 {[%emt 0:00:30]} c6 {[%emt 0:06:30]} 8. O-O-O {[%emt 0:03:30]} Bd6 {[%emt 0:05:30]} 9. Bxd6 $15 {[%emt 0:02:30]} Qxd6 {[%emt 0:00:30]} 10. g3 {[%emt 0:13:30]} Ng4 {[%emt 0:04:30]} 11. Qf3 {[%emt 0:00:30]} Rxh2 {[%emt 0:00:30]} 12. Bg2 {[%emt 0:00:30]} Rxh1 {[%emt 0:03:30]} 13. Rxh1 {[%emt 0:01:30]} Nh6 {[%emt 0:00:30]} 14. e4 {[%emt 0:01:30]} Nd7 {[%emt 0:00:30]} 15. g4 {[%emt 0:01:30]} g5 {[%emt 0:06:30]} 16. exd5 {[%emt 0:18:30]} cxd5 {[%emt 0:08:30]} 17. Nb5 {[%emt 0:00:30]} Qb6 {[%emt 0:01:30]} 18. Bf1 {[%emt 0:02:30]} a6 {[%emt 0:00:30]} 19. Qa3 {[%emt 0:00:30]} O-O-O {[%emt 0:02:30]} 20. Nd6+ {[%emt 0:01:30]} Kb8 {[%emt 0:01:30]} 21. Rh3 {[%emt 0:00:00]} Qxd4 {[%emt 0:05:30]} 22. Nxb7 {[%emt 0:10:00]} Rc8 {[%emt 0:15:30]} 23. Rb3 {[%emt 0:13:15]} Nb6 {[%emt 0:05:30]} 24. Qxa6 {[%emt 0:00:39]} Qxf2 {[%emt 0:00:30]} 25. Be2 {[%emt 0:01:46]} Kc7 {[%emt 0:06:04]} 26. Na5 {[%emt 0:00:14]} Rb8 {[%emt 0:02:35]} 27. Rc3+ {[%emt 0:02:37]} Kd6 {[%emt 0:00:53]} 28. Qa7 {[%emt 0:01:53]} Rc8 {[%emt 0:02:33]} 29. Rxc8 {[%emt 0:00:25]} Qe1+ {[%emt 0:00:11]} 30. Bd1 {[%emt 0:00:12]} Nxc8 {[%emt 0:00:04]} 31. Qb8+ {[%emt 0:00:34]} Ke7 {[%emt 0:03:47]} 32. b4 {[%emt 0:02:40]} Qe3+ {[%emt 0:00:32]} 33. Kb1 {[%emt 0:00:27]} Nb6 {[%emt 0:00:17]} 34. Nc6+ {[%emt 0:00:46]} Kf6 {[%emt 0:03:39]} 35. a4 {[%emt 0:00:06]} Nxa4 {[%emt 0:01:30]} 0-1

[Event "25th Bosnjaci Open 2020"]
[Site "Bosnjaci"]
[Date "2020.01.05"]
[Round "4.10"]
[White "Kovacevic, Blazimir"]
[Black "Boban, Sten"]
[Result "1-0"]
[ECO "A14"]
[WhiteElo "2451"]
[BlackElo "2078"]
[Annotator "ChessBase"]
[PlyCount "125"]
[EventDate "2020.01.03"]
[EventType "swiss"]
[EventCountry "CRO"]
[SourceTitle "playchess.com"]
[Source "ChessBase"]
[SourceQuality "1"]
[TimeControl "5400+30"]

1. c4 {[%emt 0:00:30]} e6 {[%emt 0:00:30]} 2. g3 {[%emt 0:00:30]} Nf6 {[%emt 0:01:30]} 3. Bg2 {[%emt 0:00:00]} d5 {[%emt 0:00:30]} 4. Nf3 {[%emt 0:00:00]} Be7 {[%emt 0:04:30]} 5. O-O {[%emt 0:00:30]} O-O {[%emt 0:00:30]} 6. b3 {[%emt 0:00:30]} c6 {[%emt 0:01:30]} 7. Bb2 {[%emt 0:00:30]} Nbd7 {[%emt 0:00:30]} 8. d3 {[%emt 0:07:30]} Re8 {[%emt 0:03:30]} 9. Nbd2 {[%emt 0:03:30]} a5 {[%emt 0:10:30]} 10. e4 {[%emt 0:02:30]} dxe4 {[%emt 0:14:30]} 11. dxe4 {[%emt 0:00:00]} e5 {[%emt 0:01:30]} 12. Nxe5 {[%emt 0:14:00]} Nxe5 {[%emt 0:01:30]} 13. Bxe5 {[%emt 0:00:30]} Bb4 {[%emt 0:00:00]} 14. Bf4 {[%emt 0:09:30]} Bxd2 {[%emt 0:12:00]} 15. Bxd2 {[%emt 0:03:30]} Nxe4 {[%emt 0:00:30]} 16. Be3 {[%emt 0:00:00]} Qf6 {[%emt 0:08:30]} 17. Bd4 {[%emt 0:05:00]} Qg6 {[%emt 0:01:30]} 18. Re1 {[%emt 0:01:30]} Bf5 {[%emt 0:00:30]} 19. Qe2 {[%emt 0:05:30]} Re6 {[%emt 0:04:30]} 20. Qb2 {[%emt 0:03:30]} Rae8 {[%emt 0:01:30]} 21. f3 {[%emt 0:05:30]} Ng5 {[%emt 0:11:20]} 22. Rxe6 {[%emt 0:02:30]} Nxe6 {[%emt 0:04:46]} 23. Bb6 {[%emt 0:03:30]} Bd3 {[%emt 0:06:06]} 24. Qc3 {[%emt 0:13:38]} a4 {[%emt 0:04:10]} 25. bxa4 {[%emt 0:06:48]} h5 {[%emt 0:00:30]} 26. Re1 {[%emt 0:03:38]} Ra8 {[%emt 0:02:26]} 27. a5 {[%emt 0:00:31]} h4 {[%emt 0:00:05]} 28. Kf2 {[%emt 0:02:35]} hxg3+ {[%emt 0:00:40]} 29. hxg3 {[%emt 0:00:34]} Bb1 {[%emt 0:00:30]} 30. f4 {[%emt 0:00:23]} Bf5 {[%emt 0:01:57]} 31. Qe5 {[%emt 0:03:16]} Bd3 {[%emt 0:00:36]} 32. Re3 {[%emt 0:01:43]} Bf5 {[%emt 0:01:58]} 33. Re1 {[%emt 0:00:55]} Bd3 {[%emt 0:00:11]} 34. Be4 {[%emt 0:01:20]} Bxe4 {[%emt 0:00:15]} 35. Qxe4 {[%emt 0:00:04]} Qf6 {[%emt 0:00:20]} 36. Kg2 {[%emt 0:00:33]} Qb2+ {[%emt 0:00:48]} 37. Re2 {[%emt 0:00:20]} Qf6 {[%emt 0:00:47]} 38. Qe5 {[%emt 0:00:28]} Qxe5 {[%emt 0:00:49]} 39. Rxe5 {[%emt 0:00:08]} g6 {[%emt 0:00:04]} 40. Kf3 {[%emt 0:00:38]} Kg7 {[%emt 0:00:25]} 41. Re2 {[%emt 0:00:26]} Kf6 {[%emt 0:00:38]} 42. Rd2 {[%emt 0:01:48]} Ke7 {[%emt 0:00:10]} 43. Rh2 {[%emt 0:00:05]} Kf6 {[%emt 0:00:27]} 44. g4 {[%emt 0:00:09]} Re8 {[%emt 0:00:47]} 45. Rd2 {[%emt 0:01:17]} Re7 {[%emt 0:01:07]} 46. Rd6 {[%emt 0:00:27]} Kg7 {[%emt 0:00:27]} 47. a6 {[%emt 0:00:41]} bxa6 {[%emt 0:00:17]} 48. Rxc6 {[%emt 0:00:04]} Rb7 {[%emt 0:00:29]} 49. a4 {[%emt 0:00:24]} Rd7 {[%emt 0:00:36]} 50. f5 {[%emt 0:00:34]} Nd4+ {[%emt 0:00:27]} 51. Bxd4+ {[%emt 0:00:07]} Rxd4 {[%emt 0:00:03]} 52. fxg6 {[%emt 0:00:40]} fxg6 {[%emt 0:00:14]} 53. g5 {[%emt 0:00:04]} Kf7 {[%emt 0:00:14]} 54. a5 {[%emt 0:01:01]} Ke7 {[%emt 0:00:58]} 55. Rxg6 {[%emt 0:01:06]} Rxc4 {[%emt 0:00:06]} 56. Rxa6 {[%emt 0:00:00]} Kf7 {[%emt 0:00:49]} 57. Rb6 {[%emt 0:00:45]} Rc3+ {[%emt 0:01:16]} 58. Kg4 {[%emt 0:00:18]} Ra3 {[%emt 0:00:14]} 59. a6 {[%emt 0:00:24]} Kg7 {[%emt 0:00:05]} 60. Kf4 {[%emt 0:00:39]} Ra5 {[%emt 0:00:54]} 61. g6 {[%emt 0:00:12]} Kf8 {[%emt 0:00:36]} 62. Re6 {[%emt 0:00:27]} Kg7 {[%emt 0:00:15]} 63. Ke4 {[%emt 0:00:03]} 1-0